fUSD/lending_fUSD_20240915
["ID","MTS","AMOUNT","RATE_DAILY","PERIOD"]
[338191029,1726379472895,-2076.1,0.00013543,2]
[338191030,1726379472904,-4483.67,0.00013543,2]
[338191031,1726379472914,-535.41,0.00013543,2]
[338191032,1726379472923,-500.0,0.00013543,2]
[338191033,1726379472932,-500.0,0.00013543,2]
[338191034,1726379472942,-2187.43,0.00013543,2]
[338191035,1726379472952,-599.44768315,0.00013543,2]
[338191036,1726379472961,-500.0,0.00013543,2]
[338191037,1726379472971,-1495.33,0.00013543,2]
[338191038,1726379472980,-1069.66,0.00013543,2]
[338191039,1726379472989,-500.0,0.00013543,2]
[338191040,1726379472998,-1246.52,0.00013543,2]
[338191041,1726379473008,-2032.76,0.00013543,2]
[338191042,1726379473017,-5043.35,0.00013543,2]
[338191043,1726379473026,-672.61,0.00013543,2]
[338191044,1726379473036,-612.46,0.00013543,2]
[338191045,1726379473045,-876.14,0.00013543,2]
[338191046,1726379473054,-500.0,0.00013543,2]
[338191047,1726379473063,-1217.19,0.00013543,2]
[338191048,1726379473072,-500.0,0.00013543,2]
[338191049,1726379473081,-959.11,0.00013543,2]
[338191050,1726379473091,-1577.97,0.00013543,2]
[338191051,1726379473100,-761.51,0.00013543,2]
[338191052,1726379473109,-500.0,0.00013543,2]
[338191053,1726379473119,-1447.89,0.00013543,2]
[338191054,1726379473128,-500.0,0.00013543,2]
[338191055,1726379473138,-1042.27,0.00013543,2]
[338191056,1726379473147,-2190.83,0.00013543,2]
[338191057,1726379473156,-500.0,0.00013543,2]
[338191058,1726379473166,-2552.37,0.00013543,2]
[338191059,1726379473175,-500.0,0.00013543,2]
[338191060,1726379473185,-500.0,0.00013543,2]
[338191061,1726379473194,-3546.16,0.00013543,2]
[338191062,1726379473203,-500.0,0.00013543,2]
[338191063,1726379473213,-1162.71,0.00013543,2]
[338191064,1726379473222,-1570.33,0.00013543,2]
[338191065,1726379473231,-1316.78,0.00013543,2]
[338191066,1726379473240,-686.14,0.00013543,2]
[338191067,1726379473249,-500.0,0.00013543,2]
[338191068,1726379473259,-500.0,0.00013543,2]
[338191069,1726379473267,-2727.09,0.00013543,2]
[338191070,1726379473277,-500.0,0.00013543,2]
[338191071,1726379473286,-500.0,0.00013543,2]
[338191072,1726379473295,-250.18249458,0.00013543,2]
[338191073,1726379473307,-249.81750542,0.00013543,2]
[338191074,1726379473316,-1055.72,0.00013543,2]
[338191075,1726379473325,-500.0,0.00013543,2]
[338191076,1726379473334,-500.0,0.00013543,2]
[338191077,1726379473343,-2001.72,0.00013543,2]
[338191078,1726379473352,-1509.35,0.00013543,2]
[338191079,1726379473362,-500.0,0.00013543,2]
[338191080,1726379473371,-863.46017354,0.00013543,2]
[338191081,1726379473384,-62.28982646,0.00013543,2]
[338191082,1726379473400,-500.0,0.00013543,2]
[338191083,1726379473409,-500.0,0.00013543,2]
[338191084,1726379473419,-1782.23,0.00013543,2]
[338191085,1726379473428,-4270.94,0.00013543,2]
[338191086,1726379473437,-500.0,0.00013543,2]
[338191087,1726379473447,-500.0,0.00013543,2]
[338191088,1726379473456,-500.0,0.00013543,2]
[338191089,1726379473465,-500.0,0.00013543,2]
[338191090,1726379473474,-578.69,0.00013543,2]
[338191091,1726379473484,-642.97,0.00013543,2]
[338191092,1726379473494,-3545.05,0.00013543,2]
[338191093,1726379473503,-2928.81,0.00013543,2]
[338191094,1726379473512,-500.0,0.00013543,2]
[338191095,1726379473522,-643.44,0.00013543,2]
[338191096,1726379473531,-3719.11,0.00013543,2]
[338191097,1726379473541,-500.0,0.00013543,2]
[338191098,1726379473550,-500.0,0.00013543,2]
[338191099,1726379473560,-500.0,0.00013543,2]
[338191100,1726379473569,-1586.91,0.00013543,2]
[338191101,1726379473579,-2214.64,0.00013543,2]
[338191102,1726379473588,-1467.41,0.00013543,2]
[338191103,1726379473597,-2274.7,0.00013543,2]
[338191104,1726379473607,-531.97,0.00013543,2]
[338191105,1726379473616,-2298.23,0.00013543,2]
[338191106,1726379473625,-561.94047524,0.00013543,2]
[338191107,1726379473635,-643.62,0.00013543,2]
[338191108,1726379473644,-12749.74,0.00013543,2]
[338191109,1726379473654,-2231.22,0.00013543,2]
[338191110,1726379473663,-500.0,0.00013543,2]
[338191111,1726379473673,-500.0,0.00013543,2]
[338191112,1726379473682,-1309.64,0.00013543,2]
[338191113,1726379473691,-2220.42,0.00013543,2]
[338191114,1726379473701,-177.12547325,0.00013543,2]
[338191115,1726379473710,-2437.1,0.00013543,2]
[338191116,1726379473719,-500.0,0.00013543,2]
[338191117,1726379473730,-1364.96,0.00013543,2]
[338191118,1726379473739,-500.0,0.00013543,2]
[338191119,1726379473749,-500.0,0.00013543,2]
[338191120,1726379473758,-1416.09,0.00013543,2]
[338191121,1726379473767,-556.92,0.00013543,2]
[338191122,1726379473776,-31804.94,0.00013543,2]
[338191123,1726379473786,-672.99,0.00013543,2]
[338191124,1726379473795,-1860.95,0.00013543,2]
[338191125,1726379473804,-2437.7,0.00013543,2]
[338191126,1726379473814,-4767.85,0.00013543,2]
[338191127,1726379473823,-1564.96,0.00013543,2]
[338191128,1726379473832,-394.37578262,0.00013543,2]
[338191129,1726379473841,-1549.7,0.00013543,2]
[338191130,1726379473851,-6824.84,0.00013543,2]
[338191131,1726379473861,-608.17,0.00013543,2]
[338191132,1726379473869,-2983.16,0.00013543,2]
[338191133,1726379473878,-1036.42,0.00013543,2]
[338191134,1726379473888,-2071.75,0.00013543,2]
[338191135,1726379473896,-1772.04,0.00013543,2]
[338191136,1726379473905,-500.0,0.00013543,2]
[338191137,1726379473914,-1210.38,0.00013544,2]
[338191138,1726379473923,-972.64,0.00013544,2]
[338191139,1726379473933,-871.85,0.00013544,2]
[338191140,1726379473943,-980.2,0.00013544,2]
[338191141,1726379473952,-1706.8,0.00013544,2]
[338191142,1726379473962,-591.56,0.00013544,2]
[338191143,1726379473972,-857.27,0.00013544,2]
[338191144,1726379473981,-500.0,0.00013544,2]
[338191145,1726379473990,-773.9,0.00013544,2]
[338191146,1726379473999,-500.0,0.00013544,2]
[338191147,1726379474008,-731.64,0.00013544,2]
[338191148,1726379474018,-500.0,0.00013544,2]
[338191149,1726379474027,-500.0,0.00013544,2]
[338191150,1726379474038,-500.0,0.00013544,2]
[338191151,1726379474047,-690.41,0.00013544,2]
[338191152,1726379474059,-500.0,0.00013544,2]
[338191153,1726379474068,-500.0,0.00013544,2]
[338191154,1726379474077,-500.0,0.00013544,2]
[338191155,1726379474086,-500.0,0.00013544,2]
[338191156,1726379474095,-500.0,0.00013544,2]
[338191157,1726379474104,-556.17,0.00013544,2]
[338191158,1726379474112,-500.0,0.00013544,2]
[338191159,1726379474122,-500.0,0.00013544,2]
[338191160,1726379474131,-613.76,0.00013544,2]
[338191161,1726379474140,-567.15,0.00013544,2]
[338191162,1726379474149,-500.0,0.00013544,2]
[338191163,1726379474158,-834.87,0.00013544,2]
[338191164,1726379474168,-500.0,0.00013544,2]
[338191165,1726379474177,-500.0,0.00013544,2]
[338191166,1726379474186,-500.0,0.00013544,2]
[338191167,1726379474195,-500.0,0.00013544,2]
[338191168,1726379474205,-500.0,0.00013544,2]
[338191169,1726379474214,-500.0,0.00013544,2]
[338191170,1726379474224,-2645.49,0.00013544,2]
[338191171,1726379474234,-500.0,0.00013544,2]
[338191172,1726379474244,-500.0,0.00013544,2]
[338191173,1726379474253,-1951.94,0.00013544,2]
[338191174,1726379474262,-150.11855425,0.00013544,2]
[338191175,1726379474271,-500.0,0.00013544,2]
[338191176,1726379474280,-500.0,0.00013544,2]
[338191177,1726379474289,-1074.6,0.00013544,2]
[338191178,1726379474299,-1080.84,0.00013544,2]
[338191179,1726379474309,-500.0,0.00013544,2]
[338191180,1726379474318,-500.0,0.00013544,2]
[338191181,1726379474327,-786.79,0.00013544,2]
[338191182,1726379474336,-500.0,0.00013544,2]
[338191183,1726379474346,-500.0,0.00013544,2]
[338191184,1726379474355,-722.18,0.00013544,2]
[338191185,1726379474364,-500.0,0.00013544,2]
[338191186,1726379474373,-674.93,0.00013544,2]
[338191187,1726379474382,-500.0,0.00013544,2]
[338191188,1726379474396,-500.0,0.00013544,2]
[338191189,1726379474405,-1345.61,0.00013544,2]
[338191190,1726379474414,-500.0,0.00013544,2]
[338191191,1726379474423,-500.0,0.00013544,2]
[338191192,1726379474431,-500.0,0.00013544,2]
[338191193,1726379474440,-576.63,0.00013544,2]
[338191194,1726379474449,-1742.41,0.00013544,2]
[338191195,1726379474458,-859.59,0.00013544,2]
[338191196,1726379474467,-500.0,0.00013544,2]
[338191197,1726379474478,-500.0,0.00013544,2]
[338191198,1726379474487,-500.0,0.00013544,2]
[338191199,1726379474497,-840.06,0.00013544,2]
[338191200,1726379474506,-460.98373771,0.00013544,2]
[338191201,1726379474515,-500.0,0.00013544,2]
[338191202,1726379474524,-1329.84,0.00013544,2]
[338191203,1726379474533,-1973.11,0.00013544,2]
[338191204,1726379474726,-500.0,0.00013544,2]
[338191205,1726379474762,-500.0,0.00013544,2]
[338191206,1726379474771,-500.0,0.00013544,2]
[338191207,1726379474783,-629.53217761,0.00013544,2]
[338191208,1726379474792,-500.0,0.00013544,2]
[338191209,1726379474801,-500.0,0.00013544,2]
[338191210,1726379474810,-500.0,0.00013544,2]
[338191211,1726379474819,-500.0,0.00013544,2]
[338191212,1726379474829,-500.0,0.00013544,2]
[338191213,1726379474838,-1915.28,0.00013544,2]
[338191214,1726379474848,-500.0,0.00013544,2]
[338191215,1726379474858,-764.63,0.00013544,2]
[338191216,1726379474868,-500.0,0.00013544,2]
[338191217,1726379474878,-500.0,0.00013544,2]
[338191218,1726379474889,-1168.4,0.00013544,2]
[338191219,1726379474900,-500.0,0.00013544,2]
[338191220,1726379474909,-500.0,0.00013544,2]
[338191221,1726379474918,-770.03,0.00013544,2]
[338191222,1726379474930,-500.0,0.00013544,2]
[338191223,1726379474940,-500.0,0.00013544,2]
[338191224,1726379474952,-500.0,0.00013544,2]
[338191225,1726379474962,-500.0,0.00013544,2]
[338191226,1726379474971,-500.0,0.00013544,2]
[338191227,1726379474988,-500.0,0.00013544,2]
[338191228,1726379474997,-500.0,0.00013544,2]
[338191229,1726379475007,-500.0,0.00013544,2]
[338191230,1726379475016,-739.91,0.00013544,2]
[338191231,1726379475025,-872.22,0.00013544,2]
[338191232,1726379475035,-500.0,0.00013544,2]
[338191233,1726379475044,-1716.89,0.00013544,2]
[338191234,1726379475054,-500.0,0.00013544,2]
[338191235,1726379475063,-6433.37,0.00013544,2]
[338191236,1726379475072,-500.0,0.00013544,2]
[338191237,1726379475082,-500.0,0.00013544,2]
[338191238,1726379475094,-500.0,0.00013544,2]
[338191239,1726379475103,-558.26,0.00013544,2]
[338191240,1726379475117,-500.0,0.00013544,2]
[338191241,1726379475127,-5563.23,0.00013544,2]
[338191242,1726379475138,-753.26,0.00013544,2]
[338191243,1726379475147,-3455.51,0.00013544,2]
[338191244,1726379475156,-500.0,0.00013544,2]
[338191245,1726379475167,-500.0,0.00013544,2]
[338191246,1726379475176,-648.27,0.00013544,2]
[338191247,1726379475185,-500.0,0.00013544,2]
[338191248,1726379475196,-500.0,0.00013544,2]
[338191249,1726379475207,-500.0,0.00013544,2]
[338191250,1726379475216,-500.0,0.00013544,2]
[338191251,1726379475231,-500.0,0.00013544,2]
[338191252,1726379475241,-500.0,0.00013544,2]
[338191253,1726379475250,-2815.41,0.00013544,2]
[338191254,1726379475260,-500.0,0.00013544,2]
[338191255,1726379475270,-500.0,0.00013544,2]
[338191256,1726379475279,-989.4,0.00013544,2]
[338191257,1726379475289,-1045.02,0.00013544,2]
[338191258,1726379475298,-500.0,0.00013544,2]
[338191259,1726379475308,-500.0,0.00013544,2]
[338191260,1726379475317,-500.0,0.00013544,2]
[338191261,1726379475327,-2499.77,0.00013544,2]
[338191262,1726379475336,-868.59,0.00013544,2]
[338191263,1726379475345,-500.0,0.00013544,2]
[338191264,1726379475355,-500.0,0.00013544,2]
[338191265,1726379475365,-542.28,0.00013544,2]
[338191266,1726379475375,-1152.6,0.00013544,2]
[338191267,1726379475386,-500.0,0.00013544,2]
[338191268,1726379475398,-3604.17,0.00013544,2]
[338191269,1726379475407,-3819.44,0.00013544,2]
[338191270,1726379475416,-4081.15,0.00013544,2]
[338191271,1726379475426,-151.0,0.00013544,2]
[338191272,1726379475436,-500.0,0.00013544,2]
[338191273,1726379475446,-193.992517,0.00013544,2]
[338191274,1726379475455,-685.13,0.00013544,2]
[338191275,1726379475465,-699.88,0.00013544,2]
[338191276,1726379475477,-808.46,0.00013544,2]
[338191277,1726379475487,-3144.17,0.00013544,2]
[338191278,1726379475496,-500.0,0.00013544,2]
[338191279,1726379475506,-961.09,0.00013544,2]
[338191280,1726379475515,-2739.64,0.00013544,2]
[338191281,1726379475525,-2106.0,0.00013544,2]
[338191282,1726379475536,-2344.89,0.00013544,2]
[338191283,1726379475547,-870.03,0.00013544,2]
[338191284,1726379475556,-500.0,0.00013544,2]
[338191285,1726379475565,-500.0,0.00013544,2]
[338191286,1726379475575,-1238.62,0.00013544,2]
[338191287,1726379475585,-2119.24,0.00013544,2]
[338191288,1726379475595,-500.0,0.00013544,2]
[338191289,1726379475604,-579.66,0.00013544,2]
[338191290,1726379475614,-1938.49,0.00013544,2]
[338191291,1726379475624,-500.0,0.00013544,2]
[338191292,1726379475634,-2168.52,0.00013544,2]
[338191293,1726379475644,-4131.43,0.00013544,2]
[338191294,1726379475654,-2160.25,0.00013544,2]
[338191295,1726379475664,-500.0,0.00013544,2]
[338191296,1726379475674,-2072.66,0.00013544,2]
[338191297,1726379475684,-569.19,0.00013544,2]
[338191298,1726379475693,-1201.04,0.00013544,2]
[338191299,1726379475703,-896.76,0.00013544,2]
[338191300,1726379475713,-500.0,0.00013544,2]
[338191301,1726379475724,-669.15,0.00013544,2]
[338191302,1726379475735,-1528.09,0.00013544,2]
[338191303,1726379475746,-3613.99,0.00013544,2]
[338191304,1726379475754,-500.0,0.00013544,2]
[338191305,1726379475764,-500.0,0.00013544,2]
[338191306,1726379475774,-2072.84,0.00013544,2]
[338191307,1726379475784,-285.74,0.00013544,2]
[338191308,1726379475793,-500.0,0.00013544,2]
[338191309,1726379475803,-1719.19,0.00013544,2]
[338191310,1726379475812,-151.0,0.00013544,2]
[338191311,1726379475822,-500.0,0.00013544,2]
[338191312,1726379475832,-268.588212,0.00013544,2]
[338191313,1726379475842,-3556.4,0.00013544,2]
[338191314,1726379475853,-2256.74,0.00013544,2]
[338191315,1726379475862,-1320.97,0.00013544,2]
[338191316,1726379475872,-500.0,0.00013544,2]
[338191317,1726379475882,-500.0,0.00013544,2]
[338191318,1726379475891,-500.0,0.00013544,2]
[338191319,1726379475901,-500.0,0.00013544,2]
[338191320,1726379475911,-2155.74,0.00013544,2]
[338191321,1726379475920,-500.0,0.00013544,2]
[338191322,1726379475930,-1708.92,0.00013544,2]
[338191323,1726379475939,-990.39,0.00013544,2]
[338191324,1726379475949,-2003.15,0.00013544,2]
[338191325,1726379475959,-845.09,0.00013544,2]
[338191326,1726379475968,-1183.22,0.00013544,2]
[338191327,1726379475978,-1029.26,0.00013544,2]
[338191328,1726379475987,-678.29,0.00013544,2]
[338191329,1726379475997,-500.0,0.00013544,2]
[338191330,1726379476007,-500.0,0.00013544,2]
[338191331,1726379476016,-536.44,0.00013544,2]
[338191332,1726379476026,-704.97,0.00013544,2]
[338191333,1726379476035,-500.0,0.00013544,2]
[338191334,1726379476044,-515.06,0.00013544,2]
[338191335,1726379476054,-151.0,0.00013544,2]
[338191336,1726379476063,-1822.81,0.00013544,2]
[338191337,1726379476073,-500.0,0.00013544,2]
[338191338,1726379476082,-2220.7,0.00013544,2]
[338191339,1726379476092,-1098.01,0.00013544,2]
[338191340,1726379476102,-1462.19,0.00013544,2]
[338191341,1726379476111,-500.0,0.00013544,2]
[338191342,1726379476120,-836.9,0.00013544,2]
[338191343,1726379476130,-620.28,0.00013544,2]
[338191344,1726379476139,-2120.26,0.00013544,2]
[338191345,1726379476148,-2544.92,0.00013544,2]
[338191346,1726379476157,-500.0,0.00013544,2]
[338191347,1726379476167,-1221.32,0.00013544,2]
[338191348,1726379476176,-707.89,0.00013544,2]
[338191349,1726379476186,-500.0,0.00013544,2]
[338191350,1726379476195,-1321.05,0.00013544,2]
[338191351,1726379476205,-2739.24,0.00013544,2]
[338191352,1726379476216,-563.83720492,0.00013544,2]
[338191353,1726379476226,-578.18,0.00013544,2]
[338191354,1726379476236,-604.19,0.00013544,2]
[338191355,1726379476245,-924.34,0.00013544,2]
[338191356,1726379476254,-500.0,0.00013544,2]
[338191357,1726379476263,-2541.36,0.00013544,2]
[338191358,1726379476272,-500.0,0.00013544,2]
[338191359,1726379476281,-847.17,0.00013544,2]
[338191360,1726379476291,-771.25,0.00013544,2]
[338191361,1726379476300,-1527.32,0.00013544,2]
[338191362,1726379476309,-1404.05,0.00013544,2]
[338191363,1726379476318,-500.0,0.00013544,2]
[338191364,1726379476327,-1278.0,0.00013544,2]
[338191365,1726379476337,-1687.29,0.00013544,2]
[338191366,1726379476346,-838.74,0.00013544,2]
[338191367,1726379476355,-581.31,0.00013544,2]
[338191368,1726379476364,-1244.81,0.00013544,2]
[338191369,1726379476373,-500.0,0.00013544,2]
[338191370,1726379476382,-2290.3,0.00013544,2]
[338191371,1726379476394,-1144.64,0.00013544,2]
[338191372,1726379476404,-500.0,0.00013544,2]
[338191373,1726379476413,-1899.71,0.00013544,2]
[338191374,1726379476422,-500.0,0.00013544,2]
[338191375,1726379476431,-557.94,0.00013544,2]
[338191376,1726379476440,-622.46,0.00013544,2]
[338191377,1726379476449,-1280.78,0.00013544,2]
[338191378,1726379476459,-500.0,0.00013544,2]
[338191379,1726379476468,-500.0,0.00013544,2]
[338191380,1726379476477,-151.0,0.00013544,2]
[338191381,1726379476487,-500.0,0.00013544,2]
[338191382,1726379476496,-500.0,0.00013544,2]
[338191383,1726379476505,-500.0,0.00013544,2]
[338191384,1726379476515,-1327.17,0.00013544,2]
[338191385,1726379476524,-826.51,0.00013544,2]
[338191386,1726379476533,-1246.1,0.00013544,2]
[338191387,1726379476543,-500.0,0.00013544,2]
[338191388,1726379476552,-500.0,0.00013544,2]
[338191389,1726379476562,-942.06,0.00013544,2]
[338191390,1726379476571,-2738.27,0.00013544,2]
[338191391,1726379476581,-1243.47,0.00013544,2]
[338191392,1726379476590,-500.0,0.00013544,2]
[338191393,1726379476599,-500.0,0.00013544,2]
[338191394,1726379476608,-812.64,0.00013544,2]
[338191395,1726379476618,-500.0,0.00013544,2]
[338191396,1726379476627,-500.0,0.00013544,2]
[338191397,1726379476636,-894.75,0.00013544,2]
[338191398,1726379476646,-500.0,0.00013544,2]
[338191399,1726379476656,-519.07,0.00013544,2]
[338191400,1726379476666,-500.0,0.00013544,2]
[338191401,1726379476675,-500.0,0.00013544,2]
[338191402,1726379476685,-516.91,0.00013544,2]
[338191403,1726379476694,-500.0,0.00013544,2]
[338191404,1726379476703,-1018.67,0.00013544,2]
[338191405,1726379476714,-500.0,0.00013544,2]
[338191406,1726379476723,-610.99,0.00013544,2]
[338191407,1726379476733,-1255.17,0.00013544,2]
[338191408,1726379476742,-500.0,0.00013544,2]
[338191409,1726379476752,-3018.65,0.00013544,2]
[338191410,1726379476761,-1491.62,0.00013544,2]
[338191411,1726379476771,-1041.51,0.00013544,2]
[338191412,1726379476781,-3297.46,0.00013544,2]
[338191413,1726379476790,-500.0,0.00013544,2]
[338191414,1726379476799,-603.82,0.00013544,2]
[338191415,1726379476808,-761.01,0.00013544,2]
[338191416,1726379476817,-21070.79,0.00013544,2]
[338191417,1726379476827,-500.0,0.00013544,2]
[338191418,1726379476836,-2225.3,0.00013544,2]
[338191419,1726379476846,-2507.4,0.00013544,2]
[338191420,1726379476856,-1908.31,0.00013544,2]
[338191421,1726379476866,-935.94,0.00013544,2]
[338191422,1726379476876,-500.0,0.00013544,2]
[338191423,1726379476886,-500.0,0.00013544,2]
[338191424,1726379476896,-2473.5,0.00013544,2]
[338191425,1726379476906,-1567.88,0.00013544,2]
[338191426,1726379476917,-918.57,0.00013544,2]
[338191427,1726379476927,-686.27,0.00013544,2]
[338191428,1726379476936,-550.87,0.00013544,2]
[338191429,1726379476945,-1349.21,0.00013544,2]
[338191430,1726379476955,-611.92,0.00013544,2]
[338191431,1726379476964,-500.0,0.00013544,2]
[338191432,1726379476974,-602.5,0.00013544,2]
[338191433,1726379476983,-220.25546391,0.00013544,2]
[338191434,1726379476995,-1090.03,0.00013544,2]
[338191435,1726379477004,-752.53,0.00013544,2]
[338191436,1726379477014,-1483.9,0.00013544,2]
[338191437,1726379477026,-500.0,0.00013544,2]
[338191438,1726379477035,-500.0,0.00013544,2]
[338191439,1726379477047,-500.0,0.00013544,2]
[338191440,1726379477056,-1155.91,0.00013544,2]
[338191441,1726379477065,-534.86,0.00013544,2]
[338191442,1726379477075,-1175.25,0.00013544,2]
[338191443,1726379477084,-709.01,0.00013544,2]
[338191444,1726379477093,-573.72,0.00013544,2]
[338191445,1726379477102,-500.0,0.00013544,2]
[338191446,1726379477181,-500.0,0.00013544,2]
[338191447,1726379477191,-500.0,0.00013544,2]
[338191448,1726379477200,-2811.03,0.00013544,2]
[338191449,1726379477210,-1794.71,0.00013544,2]
[338191450,1726379477219,-500.0,0.00013544,2]
[338191451,1726379477228,-500.0,0.00013544,2]
[338191452,1726379477237,-543.55,0.00013544,2]
[338191453,1726379477246,-565.87,0.00013544,2]
[338191454,1726379477255,-500.0,0.00013544,2]
[338191455,1726379477264,-962.27,0.00013544,2]
[338191456,1726379477273,-694.45,0.00013544,2]
[338191457,1726379477282,-500.0,0.00013544,2]
[338191458,1726379477291,-1147.46,0.00013544,2]
[338191459,1726379477300,-1080.36,0.00013544,2]
[338191460,1726379477309,-1589.24,0.00013544,2]
[338191461,1726379477318,-500.0,0.00013544,2]
[338191462,1726379477327,-1215.75,0.00013544,2]
[338191463,1726379477337,-622.33,0.00013544,2]
[338191464,1726379477347,-858.43,0.00013544,2]
[338191465,1726379477356,-581.8,0.00013544,2]
[338191466,1726379477365,-1844.05,0.00013544,2]
[338191467,1726379477374,-500.0,0.00013544,2]
[338191468,1726379477384,-500.0,0.00013544,2]
[338191469,1726379477396,-1980.04,0.00013544,2]
[338191470,1726379477405,-604.31,0.00013544,2]
[338191471,1726379477414,-994.69,0.00013544,2]
[338191472,1726379477423,-500.0,0.00013544,2]
[338191473,1726379477433,-3385.99,0.00013544,2]
[338191474,1726379477442,-500.0,0.00013544,2]
[338191475,1726379477452,-591.11324929,0.00013544,2]
[338191476,1726379477461,-500.0,0.00013544,2]
[338191477,1726379477471,-831.708207,0.00013544,2]
[338191478,1726379477481,-952.63,0.00013544,2]
[338191479,1726379477490,-769.136463,0.00013544,2]
[338191480,1726379477499,-1563.2,0.00013544,2]
[338191481,1726379477509,-831.708207,0.00013544,2]
[338191482,1726379477519,-841.22,0.00013544,2]
[338191483,1726379477528,-769.136463,0.00013544,2]
[338191484,1726379477537,-1521.16,0.00013544,2]
[338191485,1726379477547,-500.0,0.00013544,2]
[338191486,1726379477556,-500.0,0.00013544,2]
[338191487,1726379477565,-1066.71,0.00013544,2]
[338191488,1726379477575,-949.28,0.00013544,2]
[338191489,1726379477584,-940.89,0.00013544,2]
[338191490,1726379477593,-1739.11,0.00013544,2]
[338191491,1726379477603,-5364.13,0.00013544,2]
[338191492,1726379477612,-1863.7,0.00013544,2]
[338191493,1726379477621,-2068.41,0.00013544,2]
[338191494,1726379477631,-871.69,0.00013544,2]
[338191495,1726379477640,-5872.52,0.00013544,2]
[338191496,1726379477649,-1315.49,0.00013544,2]
[338191497,1726379477658,-1507.25,0.00013544,2]
[338191498,1726379477667,-500.0,0.00013545,2]
[338191499,1726379477676,-500.0,0.00013545,2]
[338191500,1726379477685,-500.0,0.00013545,2]
[338191501,1726379477694,-500.0,0.00013545,2]
[338191502,1726379477703,-516.96745031,0.00013545,2]
[338191503,1726379477713,-500.0,0.00013545,2]
[338191504,1726379477722,-500.0,0.00013545,2]
[338191505,1726379477732,-500.0,0.00013545,2]
[338191506,1726379477741,-500.0,0.00013545,2]
[338191507,1726379477750,-500.0,0.00013545,2]
[338191508,1726379477759,-500.0,0.00013545,2]
[338191509,1726379477769,-500.0,0.00013545,2]
[338191510,1726379477778,-500.0,0.00013545,2]
[338191511,1726379477787,-500.0,0.00013545,2]
[338191512,1726379477795,-500.0,0.00013545,2]
[338191513,1726379477805,-500.0,0.00013545,2]
[338191514,1726379477814,-500.0,0.00013545,2]
[338191515,1726379477824,-500.0,0.00013545,2]
[338191516,1726379477834,-500.0,0.00013545,2]
[338191517,1726379477843,-500.0,0.00013545,2]
[338191518,1726379477852,-500.0,0.00013545,2]
[338191519,1726379477862,-500.0,0.00013545,2]
[338191520,1726379477871,-500.0,0.00013545,2]
[338191521,1726379477881,-500.0,0.00013545,2]
[338191522,1726379477890,-500.0,0.00013545,2]
[338191523,1726379477899,-263.14822127,0.00013545,2]
[338191524,1726379477908,-972.64,0.00013545,2]
[338191525,1726379477918,-606.97772753,0.00013545,2]
[338191526,1726379477928,-306.72080635,0.00013545,2]
[338191527,1726379477937,-500.0,0.00013545,2]
[338191528,1726379477946,-500.0,0.00013545,2]